[Event "Rapid Tournament (RAP)"]
[Site "Biel, Switzerland"]
[Date "2026.07.12"]
[Round "7.20"]
[White "Lachat, Pierre"]
[Black "Gluckman, David"]
[Result "0-1"]
[TimeControl "15 + 5"]
[WhiteTitle "-"]
[BlackTitle "-"]
[WhiteFideId "1310763"]
[BlackFideId "14300010"]
[WhiteElo "1904"]
[BlackElo "2161"]

1. d4 {[%clk 00:15:06]} {[%emt 00:00:04]} e6 {[%clk 00:15:09]} {[%emt
00:00:03]} 2. c4 {[%clk 00:15:02]} {[%emt 00:00:08]} f5 {[%clk 00:15:12]} 3.
Nc3 {[%clk 00:15:00]} {[%emt 00:00:07]} Nf6 {[%clk 00:15:16]} 4. Nf3 {[%clk
00:14:53]} {[%emt 00:00:12]} Bb4 {[%clk 00:15:20]} {[%emt 00:00:01]} 5. Bd2
{[%clk 00:14:47]} {[%emt 00:00:12]} O-O {[%clk 00:15:16]} {[%emt 00:00:07]} 6.
e3 {[%clk 00:14:43]} {[%emt 00:00:09]} b6 {[%clk 00:15:20]} {[%emt 00:00:02]} 7.
a3 {[%clk 00:14:28]} {[%emt 00:00:20]} Bxc3 {[%clk 00:15:22]} {[%emt 00:00:04]}
8. Bxc3 {[%clk 00:14:31]} Bb7 {[%clk 00:15:15]} {[%emt 00:00:13]} 9. Be2 {[%clk
00:14:34]} {[%emt 00:00:02]} Ne4 {[%clk 00:15:04]} {[%emt 00:00:17]} 10. Bb4
{[%clk 00:14:21]} {[%emt 00:00:17]} d6 {[%clk 00:15:05]} {[%emt 00:00:04]} 11.
Qc2 {[%clk 00:14:21]} {[%emt 00:00:04]} a5 {[%clk 00:14:45]} {[%emt 00:00:26]}
12. Bd2 {[%clk 00:14:14]} {[%emt 00:00:12]} a4 {[%clk 00:14:39]} {[%emt
00:00:12]} 13. Bd3 {[%clk 00:13:53]} {[%emt 00:00:24]} Nd7 {[%clk 00:14:38]}
{[%emt 00:00:07]} 14. Bxe4 {[%clk 00:13:52]} {[%emt 00:00:06]} fxe4 {[%clk
00:14:10]} {[%emt 00:00:33]} 15. Ng1 {[%clk 00:13:50]} {[%emt 00:00:06]} Qg5
{[%clk 00:14:07]} {[%emt 00:00:09]} 16. g3 {[%clk 00:13:40]} {[%emt 00:00:15]}
e5 {[%clk 00:14:05]} {[%emt 00:00:07]} 17. Bc3 {[%clk 00:13:39]} {[%emt
00:00:06]} Qf5 {[%clk 00:13:18]} {[%emt 00:00:52]} 18. h3 {[%clk 00:13:03]}
{[%emt 00:00:41]} Ba6 {[%clk 00:12:16]} {[%emt 00:01:07]} 19. g4 {[%clk
00:12:36]} {[%emt 00:00:31]} Qf7 {[%clk 00:12:14]} {[%emt 00:00:08]} 20. dxe5
{[%clk 00:12:32]} {[%emt 00:00:09]} Nc5 {[%clk 00:12:13]} {[%emt 00:00:07]} 21.
O-O-O {[%clk 00:12:08]} {[%emt 00:00:28]} Bxc4 {[%clk 00:12:05]} {[%emt
00:00:12]} 22. exd6 {[%clk 00:11:36]} {[%emt 00:00:37]} Bd3 {[%clk 00:11:56]}
{[%emt 00:00:15]} 23. Rxd3 {[%clk 00:11:31]} {[%emt 00:00:09]} Nxd3+ {[%clk
00:11:36]} {[%emt 00:00:26]} 24. Kb1 {[%clk 00:11:35]} {[%emt 00:00:02]} Qxf2
{[%clk 00:11:09]} {[%emt 00:00:32]} 25. Ne2 {[%clk 00:11:35]} {[%emt 00:00:04]}
cxd6 {[%clk 00:10:53]} {[%emt 00:00:22]} 26. Bd4 {[%clk 00:11:26]} {[%emt
00:00:14]} b5 {[%clk 00:10:25]} {[%emt 00:00:34]} 27. Qd1 {[%clk 00:10:59]}
{[%emt 00:00:31]} Rac8 {[%clk 00:10:15]} {[%emt 00:00:15]} 28. Nc3 {[%clk
00:10:03]} {[%emt 00:01:00]} Qxb2# {[%clk 00:10:17]} {[%emt 00:00:03]} 0-1

[Event "Rapid Tournament (RAP)"]
[Site "Biel, Switzerland"]
[Date "2026.07.12"]
[Round "7.21"]
[White "Gunzinger, Severin"]
[Black "Harish, Neeraj"]
[Result "0-1"]
[TimeControl "15 + 5"]
[WhiteTitle "-"]
[BlackTitle "-"]
[WhiteFideId "1362518"]
[BlackFideId "30958130"]
[WhiteElo "1607"]
[BlackElo "2140"]

1. d4 {[%clk 00:15:07]} {[%emt 00:00:01]} Nf6 {[%clk 00:15:08]} {[%emt
00:00:02]} 2. c4 {[%clk 00:15:10]} {[%emt 00:00:04]} g6 {[%clk 00:15:07]}
{[%emt 00:00:05]} 3. Nc3 {[%clk 00:15:13]} {[%emt 00:00:03]} d5 {[%clk
00:15:09]} {[%emt 00:00:03]} 4. cxd5 {[%clk 00:15:15]} {[%emt 00:00:05]} Nxd5
{[%clk 00:15:12]} 5. e4 {[%clk 00:15:19]} {[%emt 00:00:02]} Nxc3 {[%clk
00:15:16]} {[%emt 00:00:01]} 6. bxc3 {[%clk 00:15:22]} {[%emt 00:00:01]} Bg7
{[%clk 00:15:18]} {[%emt 00:00:03]} 7. Nf3 {[%clk 00:15:24]} {[%emt 00:00:03]}
c5 {[%clk 00:15:21]} {[%emt 00:00:02]} 8. Be3 {[%clk 00:15:25]} {[%emt
00:00:04]} Qa5 {[%clk 00:15:21]} {[%emt 00:00:06]} 9. Nd2 {[%clk 00:15:23]}
{[%emt 00:00:07]} cxd4 {[%clk 00:14:30]} {[%emt 00:00:56]} 10. Nc4 {[%clk
00:15:20]} {[%emt 00:00:09]} Qc7 {[%clk 00:14:09]} {[%emt 00:00:25]} 11. cxd4
{[%clk 00:15:13]} {[%emt 00:00:13]} O-O {[%clk 00:14:11]} {[%emt 00:00:02]} 12.
Rc1 {[%clk 00:14:41]} {[%emt 00:00:37]} b5 {[%clk 00:13:52]} {[%emt 00:00:24]}
13. Nd2 {[%clk 00:14:14]} {[%emt 00:00:32]} Qa5 {[%clk 00:13:21]} {[%emt
00:00:36]} 14. Qb3 {[%clk 00:13:10]} {[%emt 00:01:09]} a6 {[%clk 00:13:18]}
{[%emt 00:00:08]} 15. Be2 {[%clk 00:13:03]} {[%emt 00:00:12]} Bb7 {[%clk
00:13:20]} {[%emt 00:00:03]} 16. f3 {[%clk 00:12:27]} {[%emt 00:00:41]} Nc6
{[%clk 00:13:15]} {[%emt 00:00:10]} 17. d5 {[%clk 00:12:13]} {[%emt 00:00:19]}
Nd4 {[%clk 00:13:13]} {[%emt 00:00:07]} 18. Qd3 {[%clk 00:11:21]} {[%emt
00:00:56]} Nxe2 {[%clk 00:12:44]} {[%emt 00:00:34]} 19. Qxe2 {[%clk 00:10:58]}
{[%emt 00:00:28]} Rac8 {[%clk 00:12:39]} {[%emt 00:00:10]} 20. O-O {[%clk
00:10:47]} {[%emt 00:00:16]} Qxa2 {[%clk 00:12:39]} {[%emt 00:00:05]} 21. h4
{[%clk 00:10:42]} {[%emt 00:00:10]} b4 {[%clk 00:11:39]} {[%emt 00:01:05]} 22.
h5 {[%clk 00:09:47]} {[%emt 00:00:59]} b3 {[%clk 00:11:22]} {[%emt 00:00:23]}
23. Qf2 {[%clk 00:08:37]} {[%emt 00:01:15]} b2 {[%clk 00:10:18]} {[%emt
00:01:09]} 24. Rb1 {[%clk 00:08:30]} {[%emt 00:00:12]} Qa4 {[%clk 00:09:19]}
{[%emt 00:01:04]} 25. Qh4 {[%clk 00:07:36]} {[%emt 00:00:59]} Bf6 {[%clk
00:08:35]} {[%emt 00:00:49]} 26. Qf2 {[%clk 00:07:10]} {[%emt 00:00:31]} Rc2
{[%clk 00:08:20]} {[%emt 00:00:20]} 27. hxg6 {[%emt 00:00:39]} hxg6 {[%clk
00:08:17]} {[%emt 00:00:05]} 28. Kh2 {[%clk 00:06:04]} {[%emt 00:00:39]} Rfc8
{[%clk 00:07:10]} {[%emt 00:01:12]} 29. f4 {[%clk 00:04:36]} {[%emt 00:01:33]}
Qd7 {[%clk 00:05:34]} {[%emt 00:01:42]} 30. Bd4 {[%clk 00:03:52]} {[%emt
00:00:49]} a5 {[%clk 00:04:11]} {[%emt 00:01:28]} 31. e5 {[%clk 00:03:01]}
{[%emt 00:00:56]} Bg7 {[%clk 00:04:09]} {[%emt 00:00:07]} 32. Rxb2 {[%clk
00:02:52]} {[%emt 00:00:13]} Qxd5 {[%clk 00:03:59]} {[%emt 00:00:16]} 33. Rfb1
{[%clk 00:01:35]} {[%emt 00:01:21]} Rxb2 {[%clk 00:03:43]} {[%emt 00:00:22]} 34.
Rxb2 {[%clk 00:01:36]} {[%emt 00:00:05]} a4 {[%clk 00:03:32]} {[%emt 00:00:16]}
35. Qf3 {[%clk 00:01:21]} {[%emt 00:00:18]} Qxd4 {[%clk 00:03:08]} {[%emt
00:00:29]} 36. Qxb7 {[%clk 00:01:24]} {[%emt 00:00:03]} Qxf4+ {[%clk 00:03:11]}
{[%emt 00:00:02]} 37. Kg1 {[%clk 00:01:17]} {[%emt 00:00:12]} Rc1+ {[%clk
00:03:14]} {[%emt 00:00:01]} 0-1

[Event "Rapid Tournament (RAP)"]
[Site "Biel, Switzerland"]
[Date "2026.07.12"]
[Round "7.22"]
[White "Erne, Raphael"]
[Black "Villiger, Jan"]
[Result "1-0"]
[TimeControl "15 + 5"]
[WhiteTitle "-"]
[BlackTitle "-"]
[WhiteFideId "1341928"]
[BlackFideId "1340891"]
[WhiteElo "2122"]
[BlackElo "1846"]

1. c4 {[%clk 00:15:07]} {[%emt 00:00:01]} e5 {[%clk 00:15:09]} {[%emt
00:00:01]} 2. g3 {[%clk 00:15:09]} {[%emt 00:00:05]} Nc6 {[%clk 00:15:11]}
{[%emt 00:00:01]} 3. Nc3 {[%clk 00:15:11]} {[%emt 00:00:06]} g6 {[%clk
00:15:14]} 4. Bg2 {[%clk 00:15:12]} {[%emt 00:00:03]} Bg7 {[%clk 00:15:18]}
{[%emt 00:00:01]} 5. Nf3 {[%clk 00:15:13]} {[%emt 00:00:04]} Nge7 {[%clk
00:15:19]} {[%emt 00:00:04]} 6. O-O {[%clk 00:15:11]} {[%emt 00:00:08]} d6
{[%clk 00:15:22]} {[%emt 00:00:02]} 7. d3 {[%clk 00:15:12]} {[%emt 00:00:03]}
O-O {[%clk 00:15:24]} {[%emt 00:00:03]} 8. Rb1 {[%clk 00:15:12]} {[%emt
00:00:05]} a5 {[%clk 00:14:59]} {[%emt 00:00:30]} 9. a3 {[%clk 00:15:15]}
{[%emt 00:00:04]} h6 {[%clk 00:14:43]} {[%emt 00:00:19]} 10. b4 {[%clk
00:15:14]} {[%emt 00:00:07]} axb4 {[%clk 00:14:45]} {[%emt 00:00:03]} 11. axb4
{[%clk 00:15:17]} {[%emt 00:00:02]} Be6 {[%clk 00:14:39]} {[%emt 00:00:11]} 12.
b5 {[%clk 00:14:53]} {[%emt 00:00:28]} Nd4 {[%clk 00:13:51]} {[%emt 00:00:53]}
13. Nd2 {[%clk 00:14:32]} {[%emt 00:00:26]} c6 {[%clk 00:12:33]} {[%emt
00:01:23]} 14. e3 {[%clk 00:13:05]} {[%emt 00:01:32]} Ndf5 {[%clk 00:12:32]}
{[%emt 00:00:06]} 15. Nde4 {[%emt 00:05:44]} Nc8 {[%clk 00:09:14]} 16. Qb3
{[%clk 00:09:23]} {[%emt 00:01:31]} Nfe7 {[%clk 00:08:23]} {[%emt 00:00:57]} 17.
Bb2 {[%clk 00:06:41]} {[%emt 00:02:47]} f5 {[%clk 00:06:18]} {[%emt 00:02:09]}
18. Nd2 {[%clk 00:06:43]} {[%emt 00:00:03]} Kh7 {[%clk 00:06:12]} {[%emt
00:00:11]} 19. Ra1 {[%clk 00:06:33]} {[%emt 00:00:16]} Rxa1 {[%clk 00:05:43]}
{[%emt 00:00:34]} 20. Rxa1 {[%clk 00:06:35]} {[%emt 00:00:03]} Qd7 {[%clk
00:04:51]} {[%emt 00:00:57]} 21. bxc6 {[%clk 00:05:49]} {[%emt 00:00:51]} bxc6
{[%clk 00:04:53]} {[%emt 00:00:02]} 22. Ra6 {[%clk 00:05:27]} {[%emt 00:00:27]}
f4 {[%clk 00:04:00]} {[%emt 00:00:59]} 23. Qa4 {[%clk 00:03:45]} {[%emt
00:01:46]} fxe3 {[%clk 00:02:51]} {[%emt 00:01:14]} 24. fxe3 {[%clk 00:03:39]}
{[%emt 00:00:11]} Bh3 {[%clk 00:02:54]} {[%emt 00:00:02]} 25. Qd1 {[%clk
00:02:08]} {[%emt 00:01:36]} Bxg2 {[%clk 00:01:52]} {[%emt 00:01:08]} 26. Kxg2
{[%clk 00:02:11]} {[%emt 00:00:01]} Nf5 {[%clk 00:01:26]} {[%emt 00:00:32]} 1-0

[Event "Rapid Tournament (RAP)"]
[Site "Biel, Switzerland"]
[Date "2026.07.12"]
[Round "7.23"]
[White "El-Mais, Ibaa"]
[Black "Moesching, Colin"]
[Result "0-1"]
[TimeControl "15 + 5"]
[WhiteTitle "-"]
[BlackTitle "-"]
[WhiteFideId "1312715"]
[BlackFideId "1345036"]
[WhiteElo "2100"]
[BlackElo "1820"]

1. d4 {[%clk 00:15:08]} {[%emt 00:00:02]} Nf6 {[%clk 00:14:52]} {[%emt
00:00:19]} 2. c4 {[%clk 00:15:11]} {[%emt 00:00:02]} c6 {[%clk 00:14:56]} 3.
Bf4 {[%clk 00:14:27]} {[%emt 00:00:49]} Qb6 {[%clk 00:14:19]} {[%emt 00:00:41]}
4. b3 {[%clk 00:13:53]} {[%emt 00:00:39]} d5 {[%clk 00:14:12]} {[%emt
00:00:12]} 5. Nf3 {[%clk 00:13:39]} {[%emt 00:00:19]} Bf5 {[%clk 00:14:15]}
{[%emt 00:00:02]} 6. Nbd2 {[%clk 00:13:19]} {[%emt 00:00:25]} e6 {[%clk
00:14:05]} {[%emt 00:00:15]} 7. c5 {[%clk 00:13:02]} {[%emt 00:00:22]} Qd8
{[%clk 00:13:37]} {[%emt 00:00:33]} 8. h3 {[%clk 00:12:40]} {[%emt 00:00:28]}
h6 {[%clk 00:13:37]} {[%emt 00:00:05]} 9. e3 {[%clk 00:12:41]} {[%emt
00:00:04]} Nbd7 {[%clk 00:13:35]} {[%emt 00:00:07]} 10. b4 {[%clk 00:12:40]}
{[%emt 00:00:06]} g5 {[%clk 00:13:02]} {[%emt 00:00:37]} 11. Bg3 {[%clk
00:12:26]} {[%emt 00:00:19]} Bg7 {[%clk 00:13:01]} {[%emt 00:00:06]} 12. b5
{[%clk 00:10:26]} {[%emt 00:02:05]} O-O {[%clk 00:11:49]} {[%emt 00:01:17]} 13.
bxc6 {[%clk 00:09:21]} {[%emt 00:01:10]} bxc6 {[%clk 00:11:52]} {[%emt
00:00:02]} 14. Qa4 {[%clk 00:09:10]} {[%emt 00:00:17]} Ne4 {[%clk 00:10:38]}
{[%emt 00:01:19]} 15. Nxe4 {[%clk 00:08:20]} {[%emt 00:00:54]} Bxe4 {[%clk
00:10:16]} {[%emt 00:00:28]} 16. Bd6 {[%clk 00:07:33]} {[%emt 00:00:51]} Re8
{[%clk 00:09:43]} {[%emt 00:00:38]} 17. Be2 {[%clk 00:06:20]} {[%emt 00:01:19]}
e5 {[%clk 00:07:33]} {[%emt 00:02:15]} 18. O-O {[%clk 00:06:21]} {[%emt
00:00:05]} exd4 {[%clk 00:06:17]} {[%emt 00:01:21]} 19. Nxd4 {[%clk 00:05:42]}
{[%emt 00:00:43]} Ne5 {[%clk 00:05:38]} {[%emt 00:00:44]} 20. Rac1 {[%clk
00:04:11]} {[%emt 00:01:35]} Qd7 {[%clk 00:02:17]} {[%emt 00:03:27]} 21. Bxe5
{[%clk 00:03:22]} {[%emt 00:00:54]} Bxe5 {[%clk 00:02:10]} {[%emt 00:00:12]} 22.
Qxc6 {[%clk 00:02:13]} {[%emt 00:01:14]} Qxc6 {[%clk 00:02:14]} 23. Nxc6 {[%clk
00:02:16]} {[%emt 00:00:01]} Bb2 {[%clk 00:02:18]} 24. Rcd1 {[%clk 00:02:20]}
{[%emt 00:00:02]} Rac8 {[%clk 00:02:09]} {[%emt 00:00:14]} 25. Nxa7 {[%clk
00:02:21]} {[%emt 00:00:04]} Rxc5 {[%clk 00:02:09]} {[%emt 00:00:05]} 26. Nb5
{[%clk 00:01:37]} {[%emt 00:00:49]} Rb8 {[%clk 00:01:26]} {[%emt 00:00:48]} 27.
Nd4 {[%clk 00:01:19]} {[%emt 00:00:23]} Ra8 {[%clk 00:01:11]} {[%emt 00:00:19]}
28. f3 {[%clk 00:01:04]} {[%emt 00:00:21]} Bg6 {[%clk 00:00:44]} {[%emt
00:00:32]} 29. Nb3 {[%clk 00:00:43]} {[%emt 00:00:25]} Rc3 {[%clk 00:00:48]} 30.
Kf2 {[%clk 00:00:19]} {[%emt 00:00:29]} Rxa2 {[%clk 00:00:50]} {[%emt
00:00:04]} 31. Nd4 {[%clk 00:00:17]} {[%emt 00:00:07]} Ba3 {[%clk 00:00:37]}
{[%emt 00:00:18]} 0-1

[Event "Rapid Tournament (RAP)"]
[Site "Biel, Switzerland"]
[Date "2026.07.12"]
[Round "7.24"]
[White "Ling, Chenxuan"]
[Black "Zecirovic, Giacomo"]
[Result "1-0"]
[TimeControl "15 + 5"]
[WhiteTitle "-"]
[BlackTitle "-"]
[WhiteFideId "30983118"]
[BlackFideId "1339451"]
[WhiteElo "2077"]
[BlackElo "1886"]

1. d4 {[%clk 00:15:08]} {[%emt 00:00:01]} Nf6 {[%clk 00:15:08]} {[%emt
00:00:02]} 2. c4 {[%clk 00:15:12]} {[%emt 00:00:04]} e6 {[%clk 00:15:11]} 3.
Nc3 {[%clk 00:15:16]} Bb4 {[%clk 00:15:12]} {[%emt 00:00:07]} 4. a3 {[%clk
00:15:19]} Bxc3+ {[%clk 00:15:08]} {[%emt 00:00:08]} 5. bxc3 {[%clk 00:15:22]}
{[%emt 00:00:02]} c5 {[%clk 00:15:11]} {[%emt 00:00:02]} 6. f3 {[%clk
00:15:21]} {[%emt 00:00:07]} O-O {[%clk 00:15:00]} {[%emt 00:00:16]} 7. e4
{[%clk 00:15:24]} {[%emt 00:00:02]} d6 {[%clk 00:14:53]} {[%emt 00:00:12]} 8.
Bd3 {[%clk 00:15:27]} {[%emt 00:00:02]} e5 {[%clk 00:14:48]} {[%emt 00:00:10]}
9. Ne2 {[%clk 00:15:30]} {[%emt 00:00:01]} Nc6 {[%clk 00:14:41]} {[%emt
00:00:12]} 10. Be3 {[%clk 00:15:34]} {[%emt 00:00:02]} b6 {[%clk 00:14:18]}
{[%emt 00:00:28]} 11. O-O {[%clk 00:15:33]} {[%emt 00:00:05]} Ba6 {[%clk
00:14:03]} {[%emt 00:00:21]} 12. f4 {[%clk 00:13:55]} {[%emt 00:01:44]} Ng4
{[%clk 00:13:40]} {[%emt 00:00:28]} 13. Bd2 {[%clk 00:13:57]} {[%emt 00:00:03]}
Na5 {[%clk 00:10:54]} {[%emt 00:02:50]} 14. h3 {[%clk 00:13:42]} {[%emt
00:00:21]} Nf6 {[%clk 00:10:53]} {[%emt 00:00:05]} 15. fxe5 {[%clk 00:13:44]}
{[%emt 00:00:04]} dxe5 {[%clk 00:10:56]} {[%emt 00:00:01]} 16. Bg5 {[%clk
00:13:47]} {[%emt 00:00:02]} cxd4 {[%clk 00:09:47]} {[%emt 00:01:15]} 17. cxd4
{[%clk 00:13:23]} {[%emt 00:00:30]} Bxc4 {[%clk 00:09:15]} {[%emt 00:00:37]} 18.
d5 {[%clk 00:13:14]} {[%emt 00:00:13]} Qd6 {[%clk 00:08:43]} {[%emt 00:00:37]}
19. Bxf6 {[%clk 00:13:10]} {[%emt 00:00:10]} gxf6 {[%clk 00:08:46]} 20. Ng3
{[%clk 00:13:13]} {[%emt 00:00:02]} Qc5+ {[%clk 00:08:29]} {[%emt 00:00:23]} 21.
Kh2 {[%clk 00:13:15]} {[%emt 00:00:02]} Qe3 {[%clk 00:07:38]} {[%emt 00:00:55]}
22. Bxc4 {[%clk 00:12:50]} {[%emt 00:00:30]} Nxc4 {[%clk 00:07:42]} {[%emt
00:00:02]} 23. Rxf6 {[%clk 00:12:53]} {[%emt 00:00:02]} Kh8 {[%clk 00:07:17]}
{[%emt 00:00:30]} 24. Rf3 {[%clk 00:12:52]} {[%emt 00:00:05]} Qg5 {[%clk
00:07:12]} {[%emt 00:00:10]} 25. Qe2 {[%clk 00:12:55]} {[%emt 00:00:03]} Nd6
{[%clk 00:07:12]} {[%emt 00:00:05]} 26. Raf1 {[%clk 00:12:58]} {[%emt
00:00:01]} Rg8 {[%clk 00:06:28]} {[%emt 00:00:50]} 27. Qd3 {[%clk 00:12:38]}
{[%emt 00:00:25]} Rg6 {[%clk 00:05:33]} {[%emt 00:01:00]} 28. R1f2 {[%clk
00:12:17]} {[%emt 00:00:26]} Rag8 {[%clk 00:05:12]} {[%emt 00:00:26]} 29. Qc2
{[%clk 00:11:52]} {[%emt 00:00:30]} h5 {[%clk 00:04:47]} {[%emt 00:00:30]} 30.
Ne2 {[%clk 00:10:37]} {[%emt 00:01:20]} Rc8 {[%clk 00:04:07]} {[%emt 00:00:44]}
31. Qd3 {[%clk 00:10:32]} {[%emt 00:00:11]} b5 {[%clk 00:03:29]} {[%emt
00:00:44]} 32. Rg3 {[%clk 00:10:18]} {[%emt 00:00:18]} Qh6 {[%clk 00:03:32]}
{[%emt 00:00:02]} 33. Rxg6 {[%clk 00:10:18]} {[%emt 00:00:05]} Qxg6 {[%clk
00:03:36]} {[%emt 00:00:01]} 34. Ng3 {[%clk 00:10:12]} {[%emt 00:00:10]} Rc4
{[%clk 00:03:27]} {[%emt 00:00:15]} 35. Qf3 {[%clk 00:09:45]} {[%emt 00:00:32]}
h4 {[%clk 00:03:10]} {[%emt 00:00:22]} 36. Nf5 {[%clk 00:09:46]} {[%emt
00:00:04]} Nxe4 {[%clk 00:02:13]} {[%emt 00:01:01]} 37. d6 {[%clk 00:08:12]}
{[%emt 00:01:40]} Nxd6 {[%clk 00:01:32]} {[%emt 00:00:46]} 38. Nxd6 {[%clk
00:08:16]} {[%emt 00:00:01]} Qxd6 {[%clk 00:01:36]} {[%emt 00:00:02]} 39. Qh5+
{[%clk 00:08:20]} {[%emt 00:00:01]} Kg8 {[%clk 00:01:29]} {[%emt 00:00:11]} 40.
Qxf7+ {[%clk 00:08:22]} {[%emt 00:00:03]} Kh8 {[%clk 00:01:33]} {[%emt
00:00:02]} 41. Rf6 {[%clk 00:08:23]} {[%emt 00:00:04]} 1-0

[Event "Rapid Tournament (RAP)"]
[Site "Biel, Switzerland"]
[Date "2026.07.12"]
[Round "7.25"]
[White "Sadeghi, Hassan Roger"]
[Black "Lang, Fabian"]
[Result "1/2-1/2"]
[TimeControl "15 + 5"]
[WhiteTitle "-"]
[BlackTitle "-"]
[WhiteFideId "1304712"]
[BlackFideId "1310160"]
[WhiteElo "2028"]
[BlackElo "1900"]

1. Nf3 {[%clk 00:15:08]} {[%emt 00:00:02]} d5 {[%clk 00:14:02]} {[%emt
00:01:08]} 2. g3 {[%clk 00:15:10]} {[%emt 00:00:03]} Nf6 {[%clk 00:14:03]}
{[%emt 00:00:05]} 3. Bg2 {[%clk 00:15:12]} {[%emt 00:00:02]} c6 {[%clk
00:13:59]} {[%emt 00:00:09]} 4. O-O {[%clk 00:15:05]} {[%emt 00:00:12]} Bg4
{[%clk 00:13:44]} {[%emt 00:00:21]} 5. Ne5 {[%clk 00:14:34]} {[%emt 00:00:35]}
Bh5 {[%clk 00:12:42]} {[%emt 00:01:07]} 6. d4 {[%clk 00:14:36]} {[%emt
00:00:04]} e6 {[%clk 00:12:28]} {[%emt 00:00:18]} 7. c4 {[%clk 00:14:13]}
{[%emt 00:00:28]} Nbd7 {[%clk 00:11:30]} {[%emt 00:01:04]} 8. Nc3 {[%clk
00:12:42]} {[%emt 00:01:36]} Nxe5 {[%clk 00:10:58]} {[%emt 00:00:36]} 9. dxe5
{[%clk 00:12:45]} {[%emt 00:00:02]} Nd7 {[%clk 00:11:01]} {[%emt 00:00:02]} 10.
cxd5 {[%clk 00:12:03]} {[%emt 00:00:48]} exd5 {[%clk 00:10:40]} {[%emt
00:00:26]} 11. Qd4 {[%clk 00:10:42]} {[%emt 00:01:26]} Bc5 {[%clk 00:10:12]}
{[%emt 00:00:34]} 12. Qf4 {[%clk 00:10:27]} {[%emt 00:00:19]} O-O {[%clk
00:09:18]} {[%emt 00:00:59]} 13. Na4 {[%clk 00:09:38]} {[%emt 00:00:54]} Be7
{[%clk 00:08:21]} {[%emt 00:01:01]} 14. g4 {[%clk 00:07:16]} {[%emt 00:02:27]}
Bg6 {[%clk 00:08:18]} {[%emt 00:00:09]} 15. Qg3 {[%clk 00:07:15]} {[%emt
00:00:06]} b5 {[%clk 00:05:13]} {[%emt 00:03:10]} 16. Nc3 {[%clk 00:07:14]}
{[%emt 00:00:06]} f5 {[%clk 00:03:02]} {[%emt 00:02:16]} 17. f4 {[%clk
00:06:03]} {[%emt 00:01:15]} Nc5 {[%clk 00:02:43]} {[%emt 00:00:25]} 18. Rd1
{[%clk 00:04:18]} {[%emt 00:01:49]} Qc8 {[%clk 00:01:22]} {[%emt 00:01:27]} 19.
b4 {[%clk 00:03:49]} {[%emt 00:00:33]} Ne4 {[%clk 00:01:22]} {[%emt 00:00:06]}
20. Nxe4 {[%clk 00:03:52]} {[%emt 00:00:01]} dxe4 {[%clk 00:01:21]} {[%emt
00:00:07]} 21. a3 {[%clk 00:03:42]} {[%emt 00:00:15]} a5 {[%clk 00:01:18]}
{[%emt 00:00:09]} 22. Bb2 {[%clk 00:03:34]} {[%emt 00:00:12]} axb4 {[%clk
00:01:18]} {[%emt 00:00:05]} 23. axb4 {[%clk 00:03:37]} {[%emt 00:00:01]} Bxb4
{[%clk 00:01:16]} {[%emt 00:00:07]} 24. Qb3+ {[%clk 00:03:39]} {[%emt
00:00:04]} Kh8 {[%clk 00:01:02]} {[%emt 00:00:20]} 25. Rxa8 {[%clk 00:03:36]}
{[%emt 00:00:07]} Bc5+ {[%clk 00:01:02]} {[%emt 00:00:05]} 26. Kh1 {[%clk
00:03:16]} {[%emt 00:00:24]} Qxa8 {[%clk 00:01:07]} {[%emt 00:00:02]} 27. Qc3
{[%clk 00:03:03]} {[%emt 00:00:17]} Qa7 {[%clk 00:00:54]} {[%emt 00:00:17]} 28.
Rc1 {[%clk 00:03:00]} {[%emt 00:00:09]} Be3 {[%clk 00:00:40]} {[%emt 00:00:11]}
1/2-1/2